[Event "37th Andorra Open 2019"]
[Site "Caldea"]
[Date "2019.08.04"]
[Round "9.2"]
[White "Asis Gargatagli, Hipolito"]
[Black "Rychagov, Andrey"]
[Result "1/2-1/2"]
[ECO "C11"]
[WhiteElo "2506"]
[BlackElo "2537"]
[Annotator "ChessBase"]
[PlyCount "22"]
[EventDate "2018.07.21"]
[EventType "swiss"]
[EventCountry "AND"]
[SourceTitle "playchess.com"]
[Source "ChessBase"]
[SourceQuality "1"]
[TimeControl "40/5400+30:1800+30"]

1. e4 {[%emt 0:04:17]} e6 {[%emt 0:00:00]} 2. d4 {[%emt 0:00:17]} d5 {[%emt 0:00:00]} 3. Nc3 {[%emt 0:00:09]} Nf6 {[%emt 0:00:07]} 4. e5 {[%emt 0:00:15]} Nfd7 {[%emt 0:00:04]} 5. Nce2 {[%emt 0:00:09]} c5 {[%emt 0:01:42]} 6. c3 {[%emt 0:00:48]} Nc6 {[%emt 0:00:48]} 7. Nf3 {[%emt 0:00:08]} Be7 {[%emt 0:03:12]} 8. a3 {[%emt 0:02:18]} Qb6 {[%emt 0:10:01]} 9. g3 {[%emt 0:18:53]} cxd4 {[%emt 0:14:53]} 10. cxd4 {[%emt 0:05:06]} f6 {[%emt 0:02:55]} 11. exf6 {[%emt 0:02:05]} Nxf6 {[%emt 0:00:39]} 1/2-1/2

[Event "37th Andorra Open 2019"]
[Site "Caldea"]
[Date "2019.08.04"]
[Round "9.3"]
[White "Kogan, Arthur"]
[Black "Narciso Dublan, Marc"]
[Result "1/2-1/2"]
[ECO "B12"]
[WhiteElo "2535"]
[BlackElo "2489"]
[Annotator "ChessBase"]
[PlyCount "58"]
[EventDate "2018.07.21"]
[EventType "swiss"]
[EventCountry "AND"]
[SourceTitle "playchess.com"]
[Source "ChessBase"]
[SourceQuality "1"]
[TimeControl "40/5400+30:1800+30"]

1. e4 {[%emt 0:00:00]} c6 {[%emt 0:00:00]} 2. d4 {[%emt 0:00:00]} d5 {[%emt 0:00:00]} 3. e5 {[%emt 0:00:14]} c5 {[%emt 0:00:16]} 4. Ne2 {[%emt 0:02:25]} Nc6 {[%emt 0:00:24]} 5. c3 {[%emt 0:00:05]} Bd7 {[%emt 0:00:43]} 6. a3 {[%emt 0:12:08]} e6 {[%emt 0:01:42]} 7. Nd2 {[%emt 0:05:24]} f6 {[%emt 0:15:29]} 8. exf6 {[%emt 0:11:43]} Nxf6 {[%emt 0:01:03]} 9. Nf3 {[%emt 0:00:41]} Bd6 {[%emt 0:03:39]} 10. Bf4 {[%emt 0:07:27]} Bxf4 {[%emt 0:02:12]} 11. Nxf4 {[%emt 0:00:11]} cxd4 {[%emt 0:00:32]} 12. cxd4 {[%emt 0:00:34]} O-O {[%emt 0:05:31]} 13. g3 {[%emt 0:24:30]} Qb6 {[%emt 0:07:02]} 14. b4 {[%emt 0:03:54]} Rae8 {[%emt 0:21:54]} 15. Bh3 {[%emt 0:08:48]} Nxd4 {[%emt 0:04:25]} 16. Qxd4 {[%emt 0:02:16]} Qxd4 {[%emt 0:01:17]} 17. Nxd4 {[%emt 0:00:10]} e5 {[%emt 0:00:08]} 18. Bxd7 {[%emt 0:00:29]} Nxd7 {[%emt 0:00:12]} 19. Nxd5 {[%emt 0:01:10]} exd4+ {[%emt 0:00:17]} 20. Kf1 {[%emt 0:00:02]} Ne5 {[%emt 0:03:52]} 21. Kg2 {[%emt 0:04:56]} Nd3 {[%emt 0:12:45]} 22. Ra2 {[%emt 0:00:59]} Rf5 {[%emt 0:05:03]} 23. Rd1 {[%emt 0:02:23]} Ne1+ {[%emt 0:01:51]} 24. Kf1 {[%emt 0:00:09]} Nf3 {[%emt 0:00:18]} 25. Nf4 {[%emt 0:01:48]} g5 {[%emt 0:02:38]} 26. Kg2 {[%emt 0:06:44]} Ne1+ {[%emt 0:02:13]} 27. Kf1 {[%emt 0:00:13]} Nf3 {[%emt 0:00:48]} 28. Kg2 {[%emt 0:00:05]} Ne1+ {[%emt 0:01:43]} 29. Kf1 {[%emt 0:00:10]} Nf3 {[%emt 0:00:54]} 1/2-1/2

[Event "37th Andorra Open 2019"]
[Site "Caldea"]
[Date "2019.08.04"]
[Round "9.4"]
[White "Thybo, Jesper Sondergaard"]
[Black "Riff, Jean-Noel"]
[Result "1-0"]
[ECO "E11"]
[WhiteElo "2528"]
[BlackElo "2495"]
[Annotator "ChessBase"]
[PlyCount "49"]
[EventDate "2018.07.21"]
[EventType "swiss"]
[EventCountry "AND"]
[SourceTitle "playchess.com"]
[Source "ChessBase"]
[SourceQuality "1"]
[TimeControl "40/5400+30:1800+30"]

1. d4 {[%emt 0:00:00]} Nf6 {[%emt 0:00:00]} 2. c4 {[%emt 0:00:00]} e6 {[%emt 0:00:00]} 3. Nf3 {[%emt 0:00:00]} Bb4+ {[%emt 0:00:00]} 4. Nbd2 {[%emt 0:00:00]} O-O {[%emt 0:00:00]} 5. a3 {[%emt 0:00:07]} Be7 {[%emt 0:00:00]} 6. e4 {[%emt 0:00:11]} d6 {[%emt 0:00:00]} 7. Be2 {[%emt 0:00:10]} a5 {[%emt 0:00:00]} 8. Qc2 {[%emt 0:02:50]} a4 {[%emt 0:00:10]} 9. Nb1 {[%emt 0:02:49]} e5 {[%emt 0:04:38]} 10. Nc3 {[%emt 0:05:40]} exd4 {[%emt 0:09:18]} 11. Nxd4 {[%emt 0:00:09]} Nbd7 {[%emt 0:00:42]} 12. g4 {[%emt 0:11:48]} Nc5 {[%emt 0:03:28]} 13. g5 {[%emt 0:00:10]} Nfd7 {[%emt 0:00:06]} 14. f4 {[%emt 0:12:23]} Re8 {[%emt 0:01:10]} 15. Be3 {[%emt 0:02:47]} Bf8 {[%emt 0:03:50]} 16. O-O-O {[%emt 0:05:35]} c6 {[%emt 0:02:17]} 17. Kb1 {[%emt 0:04:41]} Qa5 {[%emt 0:04:27]} 18. h4 {[%emt 0:07:12]} Nb6 {[%emt 0:09:24]} 19. g6 {[%emt 0:05:26]} fxg6 {[%emt 0:06:50]} 20. h5 {[%emt 0:00:18]} g5 {[%emt 0:03:49]} 21. h6 {[%emt 0:01:15]} g6 {[%emt 0:03:47]} 22. f5 {[%emt 0:00:44]} d5 {[%emt 0:03:14]} 23. fxg6 {[%emt 0:06:13]} Nxe4 {[%emt 0:02:59]} 24. Nxe4 {[%emt 0:00:15]} Rxe4 {[%emt 0:00:02]} 25. Bd3 {[%emt 0:01:23]} 1-0

[Event "37th Andorra Open 2019"]
[Site "Caldea"]
[Date "2019.08.04"]
[Round "9.5"]
[White "Ruiz Castillo, Joshua Daniel"]
[Black "Arizmendi Martinez, Julen Luis"]
[Result "0-1"]
[ECO "C71"]
[WhiteElo "2501"]
[BlackElo "2512"]
[Annotator "ChessBase"]
[PlyCount "54"]
[EventDate "2018.07.21"]
[EventType "swiss"]
[EventCountry "AND"]
[SourceTitle "playchess.com"]
[Source "ChessBase"]
[SourceQuality "1"]
[TimeControl "40/5400+30:1800+30"]

1. e4 {[%emt 0:20:11]} e5 {[%emt 0:00:00]} 2. Nf3 {[%emt 0:00:04]} Nc6 {[%emt 0:00:00]} 3. Bb5 {[%emt 0:00:03]} a6 {[%emt 0:00:00]} 4. Ba4 {[%emt 0:00:04]} d6 {[%emt 0:00:04]} 5. d4 {[%emt 0:03:03]} b5 {[%emt 0:03:46]} 6. Bb3 {[%emt 0:00:36]} Nxd4 {[%emt 0:00:50]} 7. Nxd4 {[%emt 0:00:04]} exd4 {[%emt 0:00:04]} 8. Qxd4 {[%emt 0:00:11]} c5 {[%emt 0:00:20]} 9. Qd3 {[%emt 0:02:47]} c4 {[%emt 0:00:21]} 10. Bxc4 {[%emt 0:00:00]} bxc4 {[%emt 0:00:13]} 11. Qxc4 {[%emt 0:00:02]} Be6 {[%emt 0:01:08]} 12. Qe2 {[%emt 0:01:00]} Nf6 {[%emt 0:02:59]} 13. O-O {[%emt 0:00:13]} Be7 {[%emt 0:02:48]} 14. c4 {[%emt 0:00:05]} Qb6 {[%emt 0:11:00]} 15. Nc3 {[%emt 0:09:08]} Qd4 {[%emt 0:03:15]} 16. Nd5 {[%emt 0:00:22]} Bxd5 {[%emt 0:01:16]} 17. exd5 {[%emt 0:00:09]} Rc8 {[%emt 0:14:36]} 18. Re1 {[%emt 0:02:11]} Rc7 {[%emt 0:00:20]} 19. b3 {[%emt 0:01:02]} Qxa1 {[%emt 0:14:44]} 20. Bf4 {[%emt 0:00:01]} Qd4 {[%emt 0:00:27]} 21. Bxd6 {[%emt 0:00:01]} Qa7 {[%emt 0:00:06]} 22. Ba3 {[%emt 0:04:40]} Rd7 {[%emt 0:11:35]} 23. d6 {[%emt 0:00:18]} O-O {[%emt 0:00:11]} 24. dxe7 {[%emt 0:00:02]} Re8 {[%emt 0:00:05]} 25. h3 {[%emt 0:00:27]} Qc7 {[%emt 0:06:19]} 26. Bb4 {[%emt 0:03:29]} Qb6 {[%emt 0:02:37]} 27. Bc3 {[%emt 0:03:01]} Qd6 {[%emt 0:00:54]} 0-1

[Event "37th Andorra Open 2019"]
[Site "Caldea"]
[Date "2019.08.04"]
[Round "9.6"]
[White "Fedorchuk, Sergey A."]
[Black "Fluvia Poyatos, Jordi"]
[Result "1-0"]
[ECO "B18"]
[WhiteElo "2633"]
[BlackElo "2455"]
[Annotator "ChessBase"]
[PlyCount "109"]
[EventDate "2018.07.21"]
[EventType "swiss"]
[EventCountry "AND"]
[SourceTitle "playchess.com"]
[Source "ChessBase"]
[SourceQuality "1"]
[TimeControl "40/5400+30:1800+30"]

1. e4 {[%emt 0:00:00]} c6 {[%emt 0:00:00]} 2. d4 {[%emt 0:00:36]} d5 {[%emt 0:00:09]} 3. Nd2 {[%emt 0:00:08]} dxe4 {[%emt 0:00:09]} 4. Nxe4 {[%emt 0:00:05]} Bf5 {[%emt 0:01:35]} 5. Ng3 {[%emt 0:03:48]} Bg6 {[%emt 0:00:11]} 6. Nh3 {[%emt 0:00:41]} Nd7 {[%emt 0:01:41]} 7. c3 {[%emt 0:03:08]} Qc7 {[%emt 0:13:31]} 8. Bc4 {[%emt 0:07:15]} e6 {[%emt 0:06:11]} 9. Nf4 {[%emt 0:02:58]} Ngf6 {[%emt 0:03:04]} 10. Qf3 {[%emt 0:13:10]} Bd6 {[%emt 0:10:14]} 11. Bb3 {[%emt 0:08:42]} e5 {[%emt 0:04:44]} 12. Nxg6 {[%emt 0:08:38]} hxg6 {[%emt 0:00:06]} 13. O-O {[%emt 0:09:56]} O-O {[%emt 0:05:08]} 14. Bg5 {[%emt 0:01:49]} Rae8 {[%emt 0:02:23]} 15. Rad1 {[%emt 0:04:22]} Qa5 {[%emt 0:13:10]} 16. Bd2 {[%emt 0:06:27]} exd4 {[%emt 0:03:43]} 17. cxd4 {[%emt 0:00:07]} Qb5 {[%emt 0:00:44]} 18. h4 {[%emt 0:04:26]} Nb6 {[%emt 0:03:19]} 19. Rfe1 {[%emt 0:03:05]} a5 {[%emt 0:05:07]} 20. Ne2 {[%emt 0:01:44]} Ne4 {[%emt 0:04:14]} 21. Bc1 {[%emt 0:00:20]} Qf5 {[%emt 0:04:54]} 22. Bf4 {[%emt 0:05:26]} Bb4 {[%emt 0:03:02]} 23. Nc3 {[%emt 0:06:39]} Bxc3 {[%emt 0:02:59]} 24. bxc3 {[%emt 0:01:15]} Nxc3 {[%emt 0:01:16]} 25. Qxc3 {[%emt 0:00:04]} Qxf4 {[%emt 0:00:41]} 26. Qxa5 {[%emt 0:00:08]} Nd7 {[%emt 0:03:23]} 27. g3 {[%emt 0:04:39]} Rxe1+ {[%emt 0:01:51]} 28. Qxe1 {[%emt 0:00:29]} Qd6 {[%emt 0:00:31]} 29. Qe4 {[%emt 0:00:28]} Rd8 {[%emt 0:00:38]} 30. Re1 {[%emt 0:00:17]} Kf8 {[%emt 0:01:50]} 31. Kg2 {[%emt 0:03:52]} Nf6 {[%emt 0:03:58]} 32. Qe5 {[%emt 0:00:03]} Nd5 {[%emt 0:00:11]} 33. Re4 {[%emt 0:01:02]} Qd7 {[%emt 0:00:58]} 34. Re1 {[%emt 0:00:41]} Qd6 {[%emt 0:00:39]} 35. Re4 {[%emt 0:00:18]} Qd7 {[%emt 0:00:04]} 36. Qg5 {[%emt 0:00:08]} Re8 {[%emt 0:01:09]} 37. Rxe8+ {[%emt 0:00:58]} Kxe8 {[%emt 0:00:22]} 38. Qe5+ {[%emt 0:00:09]} Kf8 {[%emt 0:00:17]} 39. a4 {[%emt 0:00:18]} Nc7 {[%emt 0:00:44]} 40. a5 {[%emt 0:00:00]} Kg8 {[%emt 0:00:00]} 41. Bc4 {[%emt 0:01:13]} Kf8 {[%emt 0:05:49]} 42. Qc5+ {[%emt 0:01:37]} Kg8 {[%emt 0:00:33]} 43. Qa7 {[%emt 0:01:22]} Qc8 {[%emt 0:00:28]} 44. Qb6 {[%emt 0:02:21]} Kf8 {[%emt 0:13:41]} 45. Qc5+ {[%emt 0:01:47]} Kg8 {[%emt 0:02:40]} 46. Qe7 {[%emt 0:13:21]} Ne6 {[%emt 0:00:09]} 47. d5 {[%emt 0:04:02]} cxd5 {[%emt 0:04:29]} 48. Bxd5 {[%emt 0:00:04]} Nd8 {[%emt 0:00:25]} 49. Kh2 {[%emt 0:07:18]} Kh7 {[%emt 0:00:29]} 50. Bg2 {[%emt 0:00:18]} Qb8 {[%emt 0:05:44]} 51. Qd7 {[%emt 0:01:47]} Kh6 {[%emt 0:00:46]} 52. Be4 {[%emt 0:00:47]} Kh7 {[%emt 0:00:46]} 53. Bd5 {[%emt 0:00:32]} Kh6 {[%emt 0:01:02]} 54. Qe8 {[%emt 0:00:17]} g5 {[%emt 0:00:29]} 55. Be4 {[%emt 0:02:16]} 1-0

[Event "37th Andorra Open 2019"]
[Site "Caldea"]
[Date "2019.08.04"]
[Round "9.7"]
[White "Peralta, Fernando"]
[Black "Aloma Vidal, Robert"]
[Result "0-1"]
[ECO "D31"]
[WhiteElo "2562"]
[BlackElo "2419"]
[Annotator "ChessBase"]
[PlyCount "76"]
[EventDate "2018.07.21"]
[EventType "swiss"]
[EventCountry "AND"]
[SourceTitle "playchess.com"]
[Source "ChessBase"]
[SourceQuality "1"]
[TimeControl "40/5400+30:1800+30"]

1. d4 {[%emt 0:00:00]} d5 {[%emt 0:03:35]} 2. c4 {[%emt 0:00:00]} e6 {[%emt 0:00:09]} 3. Nc3 {[%emt 0:00:08]} a6 {[%emt 0:00:05]} 4. cxd5 {[%emt 0:00:59]} exd5 {[%emt 0:01:06]} 5. Qb3 {[%emt 0:00:13]} c5 {[%emt 0:00:06]} 6. Qxd5 {[%emt 0:01:13]} cxd4 {[%emt 0:00:07]} 7. Qxd8+ {[%emt 0:00:07]} Kxd8 {[%emt 0:00:04]} 8. Nd5 {[%emt 0:00:25]} Be6 {[%emt 0:00:05]} 9. Nf4 {[%emt 0:00:40]} Bf5 {[%emt 0:17:15]} 10. Nf3 {[%emt 0:07:07]} Nc6 {[%emt 0:05:48]} 11. g3 {[%emt 0:05:54]} Bb4+ {[%emt 0:13:14]} 12. Bd2 {[%emt 0:04:27]} Bxd2+ {[%emt 0:02:09]} 13. Kxd2 {[%emt 0:00:14]} Nf6 {[%emt 0:00:31]} 14. Bg2 {[%emt 0:00:19]} Ke7 {[%emt 0:02:02]} 15. Rhc1 {[%emt 0:06:45]} Be4 {[%emt 0:09:11]} 16. Nd3 {[%emt 0:07:38]} Bd5 {[%emt 0:04:02]} 17. Nf4 {[%emt 0:23:08]} Be4 {[%emt 0:00:07]} 18. Bh3 {[%emt 0:00:07]} h6 {[%emt 0:06:46]} 19. Nd3 {[%emt 0:01:56]} Bd5 {[%emt 0:14:18]} 20. Nfe5 {[%emt 0:07:55]} Ne4+ {[%emt 0:00:41]} 21. Ke1 {[%emt 0:00:09]} Nxe5 {[%emt 0:01:11]} 22. Nxe5 {[%emt 0:00:08]} Ng5 {[%emt 0:02:25]} 23. Bf1 {[%emt 0:00:45]} Rac8 {[%emt 0:02:12]} 24. Nd3 {[%emt 0:01:17]} Kd6 {[%emt 0:00:35]} 25. Nb4 {[%emt 0:08:12]} Be4 {[%emt 0:00:26]} 26. h4 {[%emt 0:01:15]} Ne6 {[%emt 0:00:41]} 27. Kd2 {[%emt 0:00:24]} g5 {[%emt 0:00:41]} 28. Bh3 {[%emt 0:12:06]} gxh4 {[%emt 0:00:49]} 29. gxh4 {[%emt 0:01:17]} a5 {[%emt 0:01:09]} 30. Nd3 {[%emt 0:01:29]} Rxc1 {[%emt 0:02:27]} 31. Rxc1 {[%emt 0:00:11]} Rg8 {[%emt 0:01:07]} 32. a3 {[%emt 0:06:10]} Bxd3 {[%emt 0:03:55]} 33. Bxe6 {[%emt 0:00:46]} fxe6 {[%emt 0:00:27]} 34. Kxd3 {[%emt 0:00:28]} Rg4 {[%emt 0:02:14]} 35. h5 {[%emt 0:00:26]} Rh4 {[%emt 0:00:26]} 36. Rc8 {[%emt 0:01:08]} e5 {[%emt 0:01:46]} 37. Rd8+ {[%emt 0:01:03]} Kc6 {[%emt 0:01:13]} 38. Rc8+ {[%emt 0:01:52]} Kd6 {[%emt 0:00:49] Kxd4} 0-1